[Event "Lilla Elite Hotels Open 2019"]
[Site "Vaxjo"]
[Date "2019.02.10"]
[Round "7.3"]
[White "Muntean, Adrian"]
[Black "Alfredsson, Daniel"]
[Result "0-1"]
[ECO "B22"]
[WhiteElo "1402"]
[BlackElo "1455"]
[Annotator "NA"]
[PlyCount "50"]
[EventDate "2019.02.08"]
[EventType "swiss"]
[EventCountry "SWE"]
[SourceTitle "playchess.com"]
[Source "ChessBase"]
[SourceQuality "1"]
[TimeControl "5400+30"]

1. e4 {[%emt 0:00:00]} c5 {[%emt 0:00:00]} 2. c3 {[%emt 0:00:00]} d5 {[%emt 0:00:00]} 3. exd5 {[%emt 0:00:59]} Qxd5 {[%emt 0:00:06]} 4. d4 {[%emt 0:00:14]} cxd4 {[%emt 0:01:41]} 5. cxd4 {[%emt 0:00:40]} Nc6 {[%emt 0:00:43]} 6. Nf3 {[%emt 0:00:33]} Bg4 {[%emt 0:03:38]} 7. Be2 {[%emt 0:01:37]} e6 {[%emt 0:02:13]} 8. Nc3 {[%emt 0:01:27]} Qa5 {[%emt 0:02:40]} 9. a3 {[%emt 0:03:25]} Nf6 {[%emt 0:00:51]} 10. O-O {[%emt 0:00:59]} Be7 {[%emt 0:01:35]} 11. Be3 {[%emt 0:02:04]} O-O {[%emt 0:03:15]} 12. Qc2 {[%emt 0:01:04]} Rac8 {[%emt 0:01:38]} 13. b4 {[%emt 0:01:52]} Qc7 {[%emt 0:01:05]} 14. Ne4 {[%emt 0:01:29]} Nxd4 {[%emt 0:04:42]} 15. Nxf6+ {[%emt 0:06:21]} Bxf6 {[%emt 0:00:25]} 16. Qd3 {[%emt 0:09:17]} Nxe2+ {[%emt 0:00:40]} 17. Qxe2 {[%emt 0:00:02]} Bxa1 {[%emt 0:00:22]} 18. Rxa1 {[%emt 0:00:09]} Qc4 {[%emt 0:02:08]} 19. Qb2 {[%emt 0:00:31]} Bxf3 {[%emt 0:00:46]} 20. gxf3 {[%emt 0:00:55]} Qc3 {[%emt 0:02:25]} 21. Qa2 {[%emt 0:01:36]} Qc2 {[%emt 0:00:51]} 22. Bxa7 {[%emt 0:01:11]} Rfd8 {[%emt 0:00:27]} 23. a4 {[%emt 0:01:17]} Rd1+ {[%emt 0:01:00]} 24. Kg2 {[%emt 0:00:06]} Qg6+ {[%emt 0:00:21]} 25. Kh3 {[%emt 0:00:31]} Rd5 {[%emt 0:00:24]} 0-1

[Event "Lilla Elite Hotels Open 2019"]
[Site "Vaxjo"]
[Date "2019.02.10"]
[Round "7.4"]
[White "Johansson, Stina"]
[Black "Johansson, Jan"]
[Result "1/2-1/2"]
[ECO "B20"]
[WhiteElo "1441"]
[BlackElo "2344"]
[Annotator "NA"]
[PlyCount "85"]
[EventDate "2019.02.08"]
[EventType "swiss"]
[EventCountry "SWE"]
[SourceTitle "playchess.com"]
[Source "ChessBase"]
[SourceQuality "1"]
[TimeControl "5400+30"]

1. e4 {[%emt 0:00:00]} c5 {[%emt 0:00:00]} 2. Bc4 {[%emt 0:00:00]} d6 {[%emt 0:00:18]} 3. d3 {[%emt 0:00:41]} Nf6 {[%emt 0:01:28]} 4. Nc3 {[%emt 0:00:38]} g6 {[%emt 0:04:59]} 5. Nf3 {[%emt 0:01:18]} Bg7 {[%emt 0:00:05]} 6. Ng5 {[%emt 0:03:40]} O-O {[%emt 0:00:27]} 7. h4 {[%emt 0:00:52]} h5 {[%emt 0:10:01]} 8. f3 {[%emt 0:03:24]} Nbd7 {[%emt 0:09:00]} 9. g4 {[%emt 0:03:44]} Ne5 {[%emt 0:29:25]} 10. gxh5 {[%emt 0:01:35]} Nxh5 {[%emt 0:00:37]} 11. Bb3 {[%emt 0:01:14]} e6 {[%emt 0:08:29]} 12. Be3 {[%emt 0:06:21]} Nc6 {[%emt 0:05:33]} 13. Qd2 {[%emt 0:02:26]} Nd4 {[%emt 0:00:47]} 14. Bc4 {[%emt 0:03:40]} Qxg5 {[%emt 0:02:11]} 15. hxg5 {[%emt 0:03:54]} Nxf3+ {[%emt 0:00:13]} 16. Ke2 {[%emt 0:00:22]} Nxd2 {[%emt 0:00:09]} 17. Kxd2 {[%emt 0:00:19]} a6 {[%emt 0:02:43]} 18. Rad1 {[%emt 0:02:47]} b5 {[%emt 0:00:39]} 19. Bb3 {[%emt 0:00:33]} Bd7 {[%emt 0:03:39]} 20. Kc1 {[%emt 0:02:13]} a5 {[%emt 0:01:13]} 21. a3 {[%emt 0:04:21]} a4 {[%emt 0:01:29]} 22. Ba2 {[%emt 0:00:38]} b4 {[%emt 0:00:35]} 23. axb4 {[%emt 0:02:54]} cxb4 {[%emt 0:00:12]} 24. Ne2 {[%emt 0:01:09]} Rfc8 {[%emt 0:01:32]} 25. Kb1 {[%emt 0:01:40]} Rc7 {[%emt 0:02:35]} 26. Nf4 {[%emt 0:02:10]} Nxf4 {[%emt 0:01:16]} 27. Bxf4 {[%emt 0:00:09]} Rc6 {[%emt 0:01:07]} 28. d4 {[%emt 0:00:59]} a3 {[%emt 0:02:46]} 29. Rh2 {[%emt 0:01:59]} axb2 {[%emt 0:01:09]} 30. Kxb2 {[%emt 0:00:34]} Rca6 {[%emt 0:00:57]} 31. Bc4 {[%emt 0:01:14]} Rb6 {[%emt 0:00:56]} 32. e5 {[%emt 0:01:05]} d5 {[%emt 0:00:37]} 33. Bb3 {[%emt 0:02:36]} Rba6 {[%emt 0:01:02]} 34. Bd2 {[%emt 0:01:23]} Rb6 {[%emt 0:00:39]} 35. Rf1 {[%emt 0:03:00]} Bb5 {[%emt 0:00:44]} 36. Rf3 {[%emt 0:00:37]} Bc4 {[%emt 0:00:17]} 37. Rhf2 {[%emt 0:01:13]} Ra7 {[%emt 0:00:30]} 38. Rh2 {[%emt 0:02:26]} Bf8 {[%emt 0:00:24]} 39. Rfh3 {[%emt 0:00:44]} Bg7 {[%emt 0:00:12]} 40. Rh1 {[%emt 0:00:31]} Bxb3 {[%emt 0:01:07]} 41. Rxb3 {[%emt 0:00:55]} Bf8 {[%emt 0:00:52]} 42. Rbh3 {[%emt 0:00:47]} Bg7 {[%emt 0:00:05]} 43. Rb3 {[%emt 0:00:23]} 1/2-1/2

[Event "Lilla Elite Hotels Open 2019"]
[Site "Vaxjo"]
[Date "2019.02.10"]
[Round "8.1"]
[White "Alfredsson, Daniel"]
[Black "Wennerlund, Elias"]
[Result "0-1"]
[ECO "A30"]
[WhiteElo "1455"]
[BlackElo "1494"]
[Annotator "NA"]
[PlyCount "68"]
[EventDate "2019.02.08"]
[EventType "swiss"]
[EventCountry "SWE"]
[SourceTitle "playchess.com"]
[Source "ChessBase"]
[SourceQuality "1"]
[TimeControl "5400+30"]

1. c4 {[%emt 0:00:00]} c5 {[%emt 0:00:00]} 2. g3 {[%emt 0:00:06]} Nc6 {[%emt 0:00:00]} 3. Nf3 {[%emt 0:00:37]} e5 {[%emt 0:00:00]} 4. Nc3 {[%emt 0:00:15]} d6 {[%emt 0:00:00]} 5. d3 {[%emt 0:00:31]} a6 {[%emt 0:00:00]} 6. Bg2 {[%emt 0:02:07]} Be7 {[%emt 0:00:09]} 7. e3 {[%emt 0:01:22]} f5 {[%emt 0:02:11]} 8. O-O {[%emt 0:00:52]} Nf6 {[%emt 0:04:10]} 9. d4 {[%emt 0:04:21]} e4 {[%emt 0:01:33]} 10. Ne1 {[%emt 0:00:21]} O-O {[%emt 0:02:03]} 11. Nc2 {[%emt 0:02:32]} Bd7 {[%emt 0:04:40]} 12. b3 {[%emt 0:03:25]} Rb8 {[%emt 0:00:41]} 13. Bb2 {[%emt 0:02:39]} b5 {[%emt 0:01:20]} 14. cxb5 {[%emt 0:02:27]} axb5 {[%emt 0:00:08]} 15. dxc5 {[%emt 0:00:13]} dxc5 {[%emt 0:00:08]} 16. Nd5 {[%emt 0:00:21]} Be6 {[%emt 0:12:36]} 17. Nxf6+ {[%emt 0:08:34]} Bxf6 {[%emt 0:00:27]} 18. Bxf6 {[%emt 0:00:12]} Qxf6 {[%emt 0:00:31]} 19. Qd6 {[%emt 0:02:11]} Ne5 {[%emt 0:01:59]} 20. Rfd1 {[%emt 0:02:25]} Nd3 {[%emt 0:02:57]} 21. Bf1 {[%emt 0:02:07]} Rfd8 {[%emt 0:01:27]} 22. Qc6 {[%emt 0:01:51]} Qe7 {[%emt 0:14:51]} 23. Ne1 {[%emt 0:03:45]} Rd6 {[%emt 0:01:45]} 24. Qxd6 {[%emt 0:00:23]} Qxd6 {[%emt 0:00:05]} 25. Nxd3 {[%emt 0:00:11]} exd3 {[%emt 0:00:20]} 26. Bxd3 {[%emt 0:00:12]} Qc6 {[%emt 0:02:18]} 27. Rd2 {[%emt 0:00:25]} c4 {[%emt 0:02:35]} 28. bxc4 {[%emt 0:00:16]} bxc4 {[%emt 0:00:06]} 29. Rc1 {[%emt 0:00:33]} Qd6 {[%emt 0:03:42]} 30. Bxf5 {[%emt 0:01:22]} Qxd2 {[%emt 0:00:19]} 31. Bxe6+ {[%emt 0:00:33]} Kf8 {[%emt 0:00:10]} 32. Rxc4 {[%emt 0:00:17]} Ke7 {[%emt 0:01:04]} 33. Bf5 {[%emt 0:00:50]} Kf6 {[%emt 0:01:51]} 34. Rf4 {[%emt 0:00:11]} Ke5 0-1

[Event "Lilla Elite Hotels Open 2019"]
[Site "Vaxjo"]
[Date "2019.02.10"]
[Round "8.2"]
[White "Nabbing, Oscar"]
[Black "Petersson, David"]
[Result "1/2-1/2"]
[ECO "C25"]
[WhiteElo "1456"]
[BlackElo "1465"]
[Annotator "NA"]
[PlyCount "63"]
[EventDate "2019.02.08"]
[EventType "swiss"]
[EventCountry "SWE"]
[SourceTitle "playchess.com"]
[Source "ChessBase"]
[SourceQuality "1"]
[TimeControl "5400+30"]

1. e4 {[%emt 0:00:00]} e5 {[%emt 0:00:00]} 2. Nc3 {[%emt 0:00:06]} Bc5 {[%emt 0:00:00]} 3. f4 {[%emt 0:00:52]} d6 {[%emt 0:00:41]} 4. Nf3 {[%emt 0:00:17]} Bg4 {[%emt 0:00:26]} 5. Bc4 {[%emt 0:00:50]} Nc6 {[%emt 0:00:29]} 6. Bb5 {[%emt 0:01:26]} Nge7 {[%emt 0:02:44]} 7. h3 {[%emt 0:04:26]} Bxf3 {[%emt 0:01:02]} 8. Qxf3 {[%emt 0:00:07]} a6 {[%emt 0:01:11]} 9. Bxc6+ {[%emt 0:01:05]} Nxc6 {[%emt 0:00:16]} 10. Ne2 {[%emt 0:01:41]} Qf6 {[%emt 0:03:10]} 11. d3 {[%emt 0:00:35]} Nd4 {[%emt 0:08:54]} 12. Nxd4 {[%emt 0:02:49]} Bxd4 {[%emt 0:00:31]} 13. fxe5 {[%emt 0:00:25]} Qxf3 {[%emt 0:00:39]} 14. gxf3 {[%emt 0:00:09]} dxe5 {[%emt 0:00:26]} 15. c3 {[%emt 0:01:34]} Ba7 {[%emt 0:00:44]} 16. Ke2 {[%emt 0:00:42]} O-O-O {[%emt 0:01:00]} 17. f4 {[%emt 0:00:51]} f6 {[%emt 0:03:10]} 18. fxe5 {[%emt 0:01:00]} fxe5 {[%emt 0:00:03]} 19. Be3 {[%emt 0:00:08]} Bxe3 {[%emt 0:02:40]} 20. Kxe3 {[%emt 0:03:18]} c5 {[%emt 0:00:53]} 21. Rac1 {[%emt 0:01:25]} Kd7 {[%emt 0:03:12]} 22. Rcf1 {[%emt 0:00:31]} Rhf8 {[%emt 0:01:29]} 23. Rf5 {[%emt 0:03:22]} Ke6 {[%emt 0:08:01]} 24. Rhf1 {[%emt 0:00:46]} Rxf5 {[%emt 0:00:47]} 25. Rxf5 {[%emt 0:00:10]} g6 {[%emt 0:03:27]} 26. Rf1 {[%emt 0:00:27]} h6 {[%emt 0:04:18]} 27. Rg1 {[%emt 0:00:54]} Kf6 {[%emt 0:00:28]} 28. Rd1 {[%emt 0:00:52]} b6 {[%emt 0:03:57]} 29. Rc1 {[%emt 0:01:49]} Rc8 {[%emt 0:02:14]} 30. Rf1+ {[%emt 0:01:02]} Ke6 {[%emt 0:00:30]} 31. a3 {[%emt 0:03:31]} a5 {[%emt 0:01:52]} 32. Rg1 {[%emt 0:05:55]} 1/2-1/2

[Event "Lilla Elite Hotels Open 2019"]
[Site "Vaxjo"]
[Date "2019.02.10"]
[Round "8.3"]
[White "Seo, Jung Hyun"]
[Black "Nilsson, Hannes"]
[Result "0-1"]
[ECO "C19"]
[WhiteElo "1534"]
[BlackElo "1495"]
[Annotator "NA"]
[PlyCount "80"]
[EventDate "2019.02.08"]
[EventType "swiss"]
[EventCountry "SWE"]
[SourceTitle "playchess.com"]
[Source "ChessBase"]
[SourceQuality "1"]
[TimeControl "5400+30"]

1. e4 {[%emt 0:00:00]} e6 {[%emt 0:00:00]} 2. d4 {[%emt 0:00:00]} d5 {[%emt 0:00:00]} 3. Nc3 {[%emt 0:00:27]} Bb4 {[%emt 0:00:00]} 4. e5 {[%emt 0:00:07]} c5 {[%emt 0:00:04]} 5. a3 {[%emt 0:00:29]} Bxc3+ {[%emt 0:00:09]} 6. bxc3 {[%emt 0:00:04]} Ne7 {[%emt 0:02:08]} 7. Nf3 {[%emt 0:00:16]} Nbc6 {[%emt 0:01:04]} 8. Be3 {[%emt 0:01:35]} cxd4 {[%emt 0:03:10]} 9. cxd4 {[%emt 0:00:19]} O-O {[%emt 0:02:59]} 10. Bd3 {[%emt 0:00:42]} h6 {[%emt 0:01:20]} 11. O-O {[%emt 0:01:00]} Bd7 {[%emt 0:01:26]} 12. Qd2 {[%emt 0:00:17]} f5 {[%emt 0:06:20]} 13. c3 {[%emt 0:05:11]} Rc8 {[%emt 0:05:06]} 14. Rab1 {[%emt 0:16:56]} Na5 {[%emt 0:04:01]} 15. Qc2 {[%emt 0:05:11]} Qc7 {[%emt 0:01:55]} 16. Rfc1 {[%emt 0:01:27]} a6 {[%emt 0:07:04]} 17. Qb2 {[%emt 0:09:17]} b5 {[%emt 0:05:39]} 18. Rc2 {[%emt 0:03:06]} Nc4 {[%emt 0:08:41]} 19. Bxc4 {[%emt 0:02:38]} dxc4 {[%emt 0:01:04]} 20. Qc1 {[%emt 0:01:25]} Bc6 {[%emt 0:01:51]} 21. Ne1 {[%emt 0:00:56]} Nd5 {[%emt 0:02:07]} 22. f3 {[%emt 0:01:24]} Qf7 {[%emt 0:03:27]} 23. Bd2 {[%emt 0:04:55]} f4 {[%emt 0:03:10]} 24. g3 {[%emt 0:02:46]} fxg3 {[%emt 0:01:26]} 25. hxg3 {[%emt 0:00:04]} Ne7 {[%emt 0:03:23]} 26. f4 {[%emt 0:02:10]} Qg6 {[%emt 0:00:26]} 27. Be3 {[%emt 0:02:04]} Qxg3+ {[%emt 0:01:55]} 28. Ng2 {[%emt 0:00:08]} Nf5 {[%emt 0:01:50]} 29. Re2 {[%emt 0:00:08]} Nh4 {[%emt 0:01:51]} 30. Rbb2 {[%emt 0:00:53]} Nxg2 {[%emt 0:02:55]} 31. Rxg2 {[%emt 0:00:09]} Bxg2 {[%emt 0:00:06]} 32. Rxg2 {[%emt 0:00:03]} Qh3 {[%emt 0:04:30]} 33. Bd2 {[%emt 0:00:07]} Rf5 {[%emt 0:01:54]} 34. Qf1 {[%emt 0:00:07]} Rh5 {[%emt 0:02:30]} 35. Kf2 {[%emt 0:00:44]} Qd3 {[%emt 0:01:44]} 36. Qd1 {[%emt 0:00:36]} Rh3 {[%emt 0:01:28]} 37. Kg1 {[%emt 0:00:54]} Rf8 {[%emt 0:00:50]} 38. Qe1 {[%emt 0:00:23]} Rf5 {[%emt 0:01:27]} 39. Kf2 {[%emt 0:00:29]} Qf3+ {[%emt 0:00:35]} 40. Kg1 {[%emt 0:00:09]} Rfh5 0-1

[Event "Lilla Elite Hotels Open 2019"]
[Site "Vaxjo"]
[Date "2019.02.10"]
[Round "8.4"]
[White "Mossblad, Edvin"]
[Black "Johansson, Stina"]
[Result "1-0"]
[ECO "A28"]
[WhiteElo "1494"]
[BlackElo "1441"]
[Annotator "NA"]
[PlyCount "127"]
[EventDate "2019.02.08"]
[EventType "swiss"]
[EventCountry "SWE"]
[SourceTitle "playchess.com"]
[Source "ChessBase"]
[SourceQuality "1"]
[TimeControl "5400+30"]

1. c4 {[%emt 0:00:00]} e5 {[%emt 0:00:00]} 2. Nc3 {[%emt 0:00:00]} Nf6 {[%emt 0:00:11]} 3. Nf3 {[%emt 0:00:00]} Nc6 {[%emt 0:00:12]} 4. e3 {[%emt 0:00:15]} Bb4 {[%emt 0:01:14]} 5. Qc2 {[%emt 0:01:16]} d6 {[%emt 0:01:15]} 6. d3 {[%emt 0:01:13]} Bg4 {[%emt 0:03:28]} 7. Be2 {[%emt 0:00:01]} Qd7 {[%emt 0:04:07]} 8. Bd2 {[%emt 0:04:28]} d5 {[%emt 0:03:04]} 9. cxd5 {[%emt 0:02:28]} Nxd5 {[%emt 0:00:43]} 10. O-O {[%emt 0:04:45]} O-O-O {[%emt 0:01:25]} 11. h3 {[%emt 0:04:38]} Bxf3 {[%emt 0:03:09]} 12. Bxf3 {[%emt 0:00:13]} Nxc3 {[%emt 0:01:28]} 13. Bxc3 {[%emt 0:01:48]} Qxd3 {[%emt 0:01:50]} 14. Qxd3 {[%emt 0:06:45]} Rxd3 {[%emt 0:02:11]} 15. Bxc6 {[%emt 0:00:05]} Bxc3 {[%emt 0:00:21]} 16. Be4 {[%emt 0:00:02]} Bxb2 {[%emt 0:02:35]} 17. Bxd3 {[%emt 0:00:14]} Bxa1 {[%emt 0:00:19]} 18. Rxa1 {[%emt 0:00:04]} Rd8 {[%emt 0:00:29]} 19. Bc4 {[%emt 0:00:21]} f5 {[%emt 0:00:35]} 20. Be6+ {[%emt 0:00:16]} Kb8 {[%emt 0:00:37]} 21. Bxf5 {[%emt 0:00:02]} h6 {[%emt 0:00:18]} 22. a4 {[%emt 0:02:03]} c5 {[%emt 0:01:59]} 23. a5 {[%emt 0:01:30]} Rd6 {[%emt 0:03:03]} 24. Rc1 {[%emt 0:01:07]} b6 {[%emt 0:01:20]} 25. axb6 {[%emt 0:02:24]} axb6 {[%emt 0:00:10]} 26. Be4 {[%emt 0:02:13]} Rd7 {[%emt 0:00:34]} 27. Bc6 {[%emt 0:00:49]} Rc7 {[%emt 0:00:19]} 28. Bb5 {[%emt 0:00:08]} g5 {[%emt 0:01:51]} 29. Rd1 {[%emt 0:00:27]} c4 {[%emt 0:01:17]} 30. Rc1 {[%emt 0:03:30]} c3 {[%emt 0:00:17]} 31. Kf1 {[%emt 0:04:12]} Rc5 {[%emt 0:01:12]} 32. Ba4 {[%emt 0:00:17]} Ka7 {[%emt 0:00:36]} 33. Ke2 {[%emt 0:01:40]} Ka6 {[%emt 0:01:21]} 34. Kd3 {[%emt 0:07:53]} Ka5 {[%emt 0:00:58]} 35. Be8 {[%emt 0:02:32]} Kb4 {[%emt 0:00:59]} 36. Kc2 {[%emt 0:00:43]} b5 {[%emt 0:01:13]} 37. Rb1+ {[%emt 0:01:00]} Ka5 {[%emt 0:01:50]} 38. Rxb5+ {[%emt 0:00:27]} Rxb5 {[%emt 0:00:10]} 39. Bxb5 {[%emt 0:00:05]} Kxb5 {[%emt 0:00:07]} 40. Kxc3 {[%emt 0:00:04]} Kc5 {[%emt 0:00:10]} 41. Kd3 {[%emt 0:00:14]} Kd5 {[%emt 0:00:18]} 42. f3 {[%emt 0:00:12]} h5 {[%emt 0:01:21]} 43. g3 {[%emt 0:00:08]} h4 {[%emt 0:01:01]} 44. gxh4 {[%emt 0:08:41]} gxh4 {[%emt 0:00:17]} 45. f4 {[%emt 0:00:18]} exf4 {[%emt 0:03:01]} 46. exf4 {[%emt 0:04:16]} Ke6 {[%emt 0:00:29]} 47. Ke4 {[%emt 0:00:08]} Kf6 {[%emt 0:00:20]} 48. f5 {[%emt 0:00:11]} Kf7 {[%emt 0:00:22]} 49. Kf4 {[%emt 0:00:29]} Kf6 {[%emt 0:00:23]} 50. Kg4 {[%emt 0:00:06]} Ke5 {[%emt 0:00:44]} 51. Kg5 {[%emt 0:00:14]} Ke4 {[%emt 0:01:23]} 52. f6 {[%emt 0:00:09]} Kf3 {[%emt 0:00:05]} 53. f7 {[%emt 0:00:07]} Kg3 {[%emt 0:00:07]} 54. f8=Q {[%emt 0:00:11]} Kxh3 {[%emt 0:00:07]} 55. Qh6 {[%emt 0:00:23]} Kg2 {[%emt 0:00:21]} 56. Qxh4 {[%emt 0:00:06]} Kf3 {[%emt 0:00:16]} 57. Qf4+ {[%emt 0:00:11]} Ke2 {[%emt 0:00:13]} 58. Qg3 {[%emt 0:00:06]} Kd2 {[%emt 0:00:15]} 59. Kf4 {[%emt 0:00:17]} Kc2 {[%emt 0:00:19]} 60. Ke4 {[%emt 0:00:22]} Kb2 {[%emt 0:00:11]} 61. Kd4 {[%emt 0:00:15]} Ka2 {[%emt 0:00:14]} 62. Qb8 {[%emt 0:00:07]} Ka1 {[%emt 0:00:28]} 63. Kc3 {[%emt 0:00:03]} Ka2 {[%emt 0:00:08]} 64. Qb2# {[%emt 0:00:05]} 1-0